fUSD/lending_fUSD_20250214
["ID","MTS","AMOUNT","RATE_DAILY","PERIOD"]
[353080798,1739544696348,-609.61,0.00014356,2]
[353080799,1739544696358,-500.0,0.00014356,2]
[353080800,1739544696367,-1831.52,0.00014356,2]
[353080801,1739544696378,-500.0,0.00014356,2]
[353080802,1739544696387,-2646.27,0.00014356,2]
[353080803,1739544696398,-500.0,0.00014356,2]
[353080804,1739544696408,-1174.04,0.00014356,2]
[353080805,1739544696419,-3164.91,0.00014356,2]
[353080806,1739544696429,-884.25,0.00014356,2]
[353080807,1739544696439,-1085.57,0.00014356,2]
[353080808,1739544696448,-500.0,0.00014356,2]
[353080809,1739544696458,-1315.32,0.00014356,2]
[353080810,1739544696468,-1305.11,0.00014356,2]
[353080811,1739544696477,-1534.02,0.00014356,2]
[353080812,1739544696487,-804.3,0.00014356,2]
[353080813,1739544696498,-3065.35,0.00014356,2]
[353080814,1739544696508,-500.0,0.00014356,2]
[353080815,1739544696519,-942.83,0.00014356,2]
[353080816,1739544696529,-2292.76,0.00014356,2]
[353080817,1739544696539,-598.52,0.00014356,2]
[353080818,1739544696551,-1739.66,0.00014356,2]
[353080819,1739544696562,-3051.27,0.00014356,2]
[353080820,1739544696572,-1938.22,0.00014356,2]
[353080821,1739544696582,-1919.75,0.00014356,2]
[353080822,1739544696592,-2644.4,0.00014356,2]
[353080823,1739544696601,-500.0,0.00014356,2]
[353080824,1739544696614,-527.01,0.00014356,2]
[353080825,1739544696625,-500.0,0.00014356,2]
[353080826,1739544696635,-3022.44,0.00014356,2]
[353080827,1739544696646,-500.0,0.00014356,2]
[353080828,1739544696655,-2150.61,0.00014356,2]
[353080829,1739544696665,-1103.11,0.00014356,2]
[353080830,1739544696676,-2670.78,0.00014356,2]
[353080831,1739544696687,-852.03,0.00014356,2]
[353080832,1739544696697,-500.0,0.00014356,2]
[353080833,1739544696707,-534.43,0.00014356,2]
[353080834,1739544696716,-3644.59,0.00014356,2]
[353080835,1739544696727,-1448.15,0.00014356,2]
[353080836,1739544696738,-3104.88,0.00014356,2]
[353080837,1739544696748,-1834.3,0.00014356,2]
[353080838,1739544696758,-500.0,0.00014356,2]
[353080839,1739544696768,-826.96,0.00014356,2]
[353080840,1739544696777,-1560.34,0.00014356,2]
[353080841,1739544696787,-500.0,0.00014356,2]
[353080842,1739544696799,-1308.88,0.00014356,2]
[353080843,1739544696810,-3528.69,0.00014356,2]
[353080844,1739544696820,-1061.33,0.00014356,2]
[353080845,1739544696829,-2015.42,0.00014356,2]
[353080846,1739544696839,-5617.67,0.00014356,2]
[353080847,1739544696850,-756.69,0.00014356,2]
[353080848,1739544696860,-1702.01,0.00014356,2]
[353080849,1739544696870,-500.0,0.00014356,2]
[353080850,1739544696881,-500.0,0.00014356,2]
[353080851,1739544696891,-701.91,0.00014356,2]
[353080852,1739544696901,-3158.22,0.00014356,2]
[353080853,1739544696912,-1786.48,0.00014356,2]
[353080854,1739544696922,-3903.71,0.00014356,2]
[353080855,1739544696931,-1832.52,0.00014356,2]
[353080856,1739544696941,-848.31,0.00014356,2]
[353080857,1739544696951,-3315.95,0.00014356,2]
[353080858,1739544696960,-2725.27,0.00014356,2]
[353080859,1739544696971,-2031.81,0.00014356,2]
[353080860,1739544696983,-4599.98,0.00014356,2]
[353080861,1739544696993,-500.0,0.00014356,2]
[353080862,1739544697003,-703.01,0.00014356,2]
[353080863,1739544697013,-1874.26,0.00014356,2]
[353080864,1739544697022,-3262.91,0.00014356,2]
[353080865,1739544697031,-2314.45,0.00014356,2]
[353080866,1739544697041,-1772.25,0.00014356,2]
[353080867,1739544697050,-603.08,0.00014356,2]
[353080868,1739544697059,-9777.12,0.00014356,2]
[353080869,1739544697069,-500.0,0.00014356,2]
[353080870,1739544697078,-2126.44,0.00014356,2]
[353080871,1739544697087,-500.0,0.00014356,2]
[353080872,1739544697098,-5018.81,0.00014356,2]
[353080873,1739544697111,-742.14,0.00014356,2]
[353080874,1739544697121,-500.0,0.00014356,2]
[353080875,1739544697130,-1707.91,0.00014356,2]
[353080876,1739544697140,-4887.29,0.00014356,2]
[353080877,1739544697151,-1348.91,0.00014356,2]
[353080878,1739544697160,-2091.28,0.00014356,2]
[353080879,1739544697170,-3940.98,0.00014356,2]
[353080880,1739544697180,-806.99,0.00014356,2]
[353080881,1739544697189,-2219.75,0.00014356,2]
[353080882,1739544697198,-9856.61,0.00014356,2]
[353080883,1739544697207,-3791.9,0.00014356,2]
[353080884,1739544697217,-1688.79,0.00014356,2]
[353080885,1739544697226,-1160.16,0.00014356,2]
[353080886,1739544697236,-1010.37,0.00014356,2]
[353080887,1739544697245,-2871.72,0.00014356,2]
[353080888,1739544697255,-555.99,0.00014356,2]
[353080889,1739544697264,-430.80430711,0.00014356,2]
[353080890,1739544697274,-3497.49,0.00014356,2]
[353080891,1739544697284,-3867.62,0.00014356,2]
[353080892,1739544697293,-4324.25,0.00014356,2]
[353080893,1739544697303,-620.70015085,0.00014356,2]
[353080894,1739544697312,-500.0,0.00014356,2]
[353080895,1739544697322,-503.82,0.00014356,2]
[353080896,1739544697331,-500.0,0.00014356,2]
[353080897,1739544697340,-500.0,0.00014356,2]
[353080898,1739544697350,-1311.88,0.00014356,2]
[353080899,1739544697360,-635.55,0.00014356,2]
[353080900,1739544697369,-3120.27,0.00014356,2]
[353080901,1739544697379,-3050.97,0.00014356,2]
[353080902,1739544697388,-2478.28,0.00014356,2]
[353080903,1739544697398,-3878.71,0.00014356,2]
[353080904,1739544697407,-2905.87,0.00014356,2]
[353080905,1739544697416,-3113.23,0.00014356,2]
[353080906,1739544697426,-2064.17,0.00014356,2]
[353080907,1739544697435,-9308.41,0.00014356,2]
[353080908,1739544697445,-1168.26,0.00014356,2]
[353080909,1739544697454,-974.13,0.00014356,2]
[353080910,1739544697464,-500.0,0.00014356,2]
[353080911,1739544697473,-2987.68,0.00014356,2]
[353080912,1739544697483,-599.03,0.00014356,2]
[353080913,1739544697492,-2495.74,0.00014356,2]
[353080914,1739544697503,-500.0,0.00014356,2]
[353080915,1739544697512,-3753.97,0.00014356,2]
[353080916,1739544697522,-661.86,0.00014356,2]
[353080917,1739544697531,-500.0,0.00014356,2]
[353080918,1739544697543,-2852.23,0.00014356,2]
[353080919,1739544697553,-2282.79,0.00014356,2]
[353080920,1739544697563,-659.95,0.00014356,2]
[353080921,1739544697573,-500.0,0.00014356,2]
[353080922,1739544697582,-2097.8,0.00014356,2]
[353080923,1739544697592,-657.14,0.00014356,2]
[353080924,1739544697601,-1146.32,0.00014356,2]
[353080925,1739544697611,-5107.22,0.00014356,2]
[353080926,1739544697620,-877.64,0.00014356,2]
[353080927,1739544697630,-4773.03,0.00014356,2]
[353080928,1739544697639,-3084.9,0.00014356,2]
[353080929,1739544697648,-829.21,0.00014356,2]
[353080930,1739544697658,-500.0,0.00014356,2]
[353080931,1739544697667,-4382.38,0.00014356,2]
[353080932,1739544697678,-500.0,0.00014356,2]
[353080933,1739544697687,-500.0,0.00014356,2]
[353080934,1739544697697,-500.0,0.00014356,2]
[353080935,1739544697707,-3816.98,0.00014356,2]
[353080936,1739544697717,-1329.9,0.00014356,2]
[353080937,1739544697727,-500.0,0.00014356,2]
[353080938,1739544697737,-779.2,0.00014356,2]
[353080939,1739544697747,-3531.24,0.00014356,2]
[353080940,1739544697756,-3267.0,0.00014356,2]
[353080941,1739544697766,-1241.61,0.00014356,2]
[353080942,1739544697776,-1017.37,0.00014356,2]
[353080943,1739544697786,-500.0,0.00014356,2]
[353080944,1739544697797,-500.0,0.00014356,2]
[353080945,1739544697807,-681.69,0.00014356,2]
[353080946,1739544697817,-500.0,0.00014356,2]
[353080947,1739544697827,-1317.51,0.00014356,2]
[353080948,1739544697839,-617.61,0.00014356,2]
[353080949,1739544697848,-542.26,0.00014356,2]
[353080950,1739544697858,-3593.84,0.00014356,2]
[353080951,1739544697867,-500.0,0.00014356,2]
[353080952,1739544697878,-3036.12,0.00014356,2]
[353080953,1739544697888,-4983.75,0.00014356,2]
[353080954,1739544697897,-542.86,0.00014356,2]
[353080955,1739544697907,-2461.67,0.00014356,2]
[353080956,1739544697918,-520.9,0.00014356,2]
[353080957,1739544697927,-500.0,0.00014356,2]
[353080958,1739544697938,-3383.44,0.00014356,2]
[353080959,1739544697947,-662.81,0.00014356,2]
[353080960,1739544697957,-1911.36,0.00014356,2]
[353080961,1739544697966,-3689.77,0.00014356,2]
[353080962,1739544697976,-2009.32,0.00014356,2]
[353080963,1739544697986,-970.34,0.00014356,2]
[353080964,1739544697996,-5827.67,0.00014356,2]
[353080965,1739544698008,-500.0,0.00014356,2]
[353080966,1739544698018,-3320.84,0.00014356,2]
[353080967,1739544698028,-4696.51,0.00014356,2]
[353080968,1739544698038,-500.0,0.00014356,2]
[353080969,1739544698047,-500.0,0.00014356,2]
[353080970,1739544698058,-2598.35,0.00014356,2]
[353080971,1739544698069,-500.0,0.00014356,2]
[353080972,1739544698078,-2259.73,0.00014356,2]
[353080973,1739544698089,-4477.39,0.00014356,2]
[353080974,1739544698099,-1589.29,0.00014356,2]
[353080975,1739544698115,-1657.4,0.00014356,2]
[353080976,1739544698125,-2233.64,0.00014356,2]
[353080977,1739544698135,-1417.16,0.00014356,2]
[353080978,1739544698145,-653.7,0.00014356,2]
[353080979,1739544698155,-896.69,0.00014356,2]
[353080980,1739544698164,-3209.23,0.00014356,2]
[353080981,1739544698174,-1823.66,0.00014356,2]
[353080982,1739544698185,-517.09,0.00014356,2]
[353080983,1739544698196,-2492.01,0.00014356,2]
[353080984,1739544698206,-1632.35,0.00014356,2]
[353080985,1739544698216,-2703.17,0.00014356,2]
[353080986,1739544698227,-500.0,0.00014356,2]
[353080987,1739544698237,-1185.65,0.00014356,2]
[353080988,1739544698247,-500.0,0.00014356,2]
[353080989,1739544698256,-500.0,0.00014356,2]
[353080990,1739544698265,-500.0,0.00014356,2]
[353080991,1739544698275,-4133.86,0.00014356,2]
[353080992,1739544698343,-500.0,0.00014356,2]
[353080993,1739544698355,-500.0,0.00014356,2]
[353080994,1739544698364,-3609.04,0.00014356,2]
[353080995,1739544698374,-500.0,0.00014356,2]
[353080996,1739544698383,-3754.44,0.00014356,2]
[353080997,1739544698394,-2296.67,0.00014356,2]
[353080998,1739544698403,-3027.31,0.00014356,2]
[353080999,1739544698413,-850.36,0.00014356,2]
[353081000,1739544698423,-1599.65,0.00014356,2]
[353081001,1739544698433,-4105.41,0.00014356,2]
[353081002,1739544698443,-742.16,0.00014356,2]
[353081003,1739544698454,-3914.44,0.00014356,2]
[353081004,1739544698464,-566.89,0.00014356,2]
[353081005,1739544698475,-500.0,0.00014383,2]
[353081006,1739544698485,-1563.0,0.00014383,2]
[353081007,1739544698496,-3135.9,0.000144,2]
[353081008,1739544698505,-488.64,0.000144,2]
[353081009,1739544698515,-168.06328499,0.00014403,2]
[353081010,1739544698524,-500.0,0.0001441,2]
[353081011,1739544698534,-1563.0,0.0001441,2]
[353081012,1739544698543,-500.0,0.00014438,2]
[353081013,1739544698552,-1563.0,0.00014438,2]
[353081014,1739544698561,-258.1722627,0.00014438,2]
[353081015,1739544698571,-1911.281941,0.00014438,2]
[353081016,1739544698580,-1337.301732,0.00014438,2]
[353081017,1739544698589,-659.14,0.00014438,2]
[353081018,1739544698600,-709.35,0.00014438,2]
[353081019,1739544698611,-631.86,0.00014438,2]
[353081020,1739544698620,-500.0,0.00014438,2]
[353081021,1739544698631,-500.0,0.00014438,2]
[353081022,1739544698642,-500.0,0.00014438,2]
[353081023,1739544698653,-594.18,0.00014438,2]
[353081024,1739544698663,-500.0,0.00014438,2]
[353081025,1739544698673,-718.88,0.00014438,2]
[353081026,1739544698682,-621.55,0.00014438,2]
[353081027,1739544698692,-294.92452881,0.00014438,2]
[353081028,1739544698702,-500.0,0.00014438,2]
[353081029,1739544698712,-742.42,0.00014438,2]
[353081030,1739544698721,-814.3,0.00014438,2]
[353081031,1739544698730,-500.0,0.00014438,2]
[353081032,1739544698739,-500.0,0.00014438,2]
[353081033,1739544698749,-539.6,0.00014438,2]
[353081034,1739544698759,-667.62,0.00014438,2]
[353081035,1739544698768,-500.0,0.00014438,2]
[353081036,1739544698777,-465.42515842,0.00014438,2]
[353081037,1739544698787,-500.0,0.00014438,2]
[353081038,1739544698797,-524.12,0.00014438,2]
[353081039,1739544698806,-503.78,0.00014438,2]
[353081040,1739544698816,-760.17,0.00014438,2]
[353081041,1739544698825,-1130.54,0.00014438,2]
[353081042,1739544698835,-901.3,0.00014438,2]
[353081043,1739544698844,-500.0,0.00014438,2]
[353081044,1739544698854,-500.0,0.00014438,2]
[353081045,1739544698863,-607.24,0.00014438,2]
[353081046,1739544698873,-609.68,0.00014438,2]
[353081047,1739544698882,-673.47,0.00014438,2]
[353081048,1739544698891,-500.0,0.00014438,2]
[353081049,1739544698901,-500.0,0.00014438,2]
[353081050,1739544698910,-619.31,0.00014438,2]
[353081051,1739544698921,-500.0,0.00014438,2]
[353081052,1739544698931,-500.0,0.00014438,2]
[353081053,1739544698940,-717.98,0.00014438,2]
[353081054,1739544698951,-920.52,0.00014438,2]
[353081055,1739544698960,-1053.05,0.00014438,2]
[353081056,1739544698970,-579.27,0.00014438,2]
[353081057,1739544698979,-655.19,0.00014438,2]
[353081058,1739544698989,-551.39,0.00014438,2]
[353081059,1739544698999,-500.0,0.00014438,2]
[353081060,1739544699009,-916.51,0.00014438,2]
[353081061,1739544699019,-500.0,0.00014438,2]
[353081062,1739544699029,-690.09,0.00014438,2]
[353081063,1739544699039,-850.89,0.00014438,2]
[353081064,1739544699051,-500.0,0.00014438,2]
[353081065,1739544699062,-622.05,0.00014438,2]
[353081066,1739544699075,-500.0,0.00014438,2]
[353081067,1739544699085,-845.24,0.00014438,2]
[353081068,1739544699096,-2399.9,0.00014438,2]
[353081069,1739544699111,-500.0,0.00014438,2]
[353081070,1739544699122,-882.97,0.00014438,2]
[353081071,1739544699133,-500.0,0.00014438,2]
[353081072,1739544699143,-500.0,0.00014438,2]
[353081073,1739544699155,-500.0,0.00014438,2]
[353081074,1739544699165,-500.0,0.00014438,2]
[353081075,1739544699176,-500.0,0.00014438,2]
[353081076,1739544699189,-1071.14,0.00014438,2]
[353081077,1739544699199,-500.0,0.00014438,2]
[353081078,1739544699211,-520.64,0.00014438,2]
[353081079,1739544699222,-500.0,0.00014438,2]
[353081080,1739544699232,-569.33,0.00014438,2]
[353081081,1739544699244,-500.0,0.00014438,2]
[353081082,1739544699254,-500.0,0.00014438,2]
[353081083,1739544699265,-1565.53,0.00014438,2]
[353081084,1739544699275,-1214.8,0.00014438,2]
[353081085,1739544699286,-608.54,0.00014438,2]
[353081086,1739544699298,-1087.72,0.00014438,2]
[353081087,1739544699308,-870.49,0.00014438,2]
[353081088,1739544699318,-858.99,0.00014438,2]
[353081089,1739544699329,-500.0,0.00014438,2]
[353081090,1739544699339,-843.1,0.00014438,2]
[353081091,1739544699349,-1573.74,0.00014438,2]
[353081092,1739544699359,-1220.82,0.00014438,2]
[353081093,1739544699370,-1854.13,0.00014438,2]
[353081094,1739544699380,-651.62,0.00014438,2]
[353081095,1739544699390,-500.0,0.00014438,2]
[353081096,1739544699400,-1294.49,0.00014438,2]
[353081097,1739544699410,-500.0,0.00014438,2]
[353081098,1739544699421,-975.09,0.00014438,2]
[353081099,1739544699432,-601.37,0.00014438,2]
[353081100,1739544699443,-500.0,0.00014438,2]
[353081101,1739544699452,-802.24,0.00014438,2]
[353081102,1739544699463,-1276.04,0.00014438,2]
[353081103,1739544699474,-855.93,0.00014438,2]
[353081104,1739544699485,-953.5,0.00014438,2]
[353081105,1739544699496,-1669.73,0.00014438,2]
[353081106,1739544699507,-500.0,0.00014438,2]
[353081107,1739544699518,-500.0,0.00014438,2]
[353081108,1739544699529,-738.15,0.00014438,2]
[353081109,1739544699539,-1316.02,0.00014438,2]
[353081110,1739544699551,-500.0,0.00014438,2]
[353081111,1739544699561,-799.32,0.00014438,2]
[353081112,1739544699571,-1136.8,0.00014438,2]
[353081113,1739544699580,-826.16,0.00014438,2]
[353081114,1739544699591,-511.86,0.00014438,2]
[353081115,1739544699601,-1440.13,0.00014438,2]
[353081116,1739544699611,-737.56,0.00014438,2]
[353081117,1739544699621,-510.22,0.00014438,2]
[353081118,1739544699630,-500.0,0.00014438,2]
[353081119,1739544699640,-864.12,0.00014438,2]
[353081120,1739544699649,-500.0,0.00014438,2]
[353081121,1739544699660,-931.04,0.00014438,2]
[353081122,1739544699669,-500.0,0.00014438,2]
[353081123,1739544699679,-500.0,0.00014438,2]
[353081124,1739544699690,-1342.89,0.00014438,2]
[353081125,1739544699699,-1262.7,0.00014438,2]
[353081126,1739544699709,-871.99,0.00014438,2]
[353081127,1739544699719,-701.41,0.00014438,2]
[353081128,1739544699729,-917.64,0.00014438,2]
[353081129,1739544699739,-598.31,0.00014438,2]
[353081130,1739544699750,-1594.36,0.00014438,2]
[353081131,1739544699761,-500.0,0.00014438,2]
[353081132,1739544699771,-727.18,0.00014438,2]
[353081133,1739544699783,-500.0,0.00014438,2]
[353081134,1739544699794,-1209.19,0.00014438,2]
[353081135,1739544699804,-708.13,0.00014438,2]
[353081136,1739544699814,-934.97,0.00014438,2]
[353081137,1739544699825,-1581.39,0.00014438,2]
[353081138,1739544699835,-779.87,0.00014438,2]
[353081139,1739544699846,-500.0,0.00014438,2]
[353081140,1739544699856,-744.99,0.00014438,2]
[353081141,1739544699865,-726.26,0.00014438,2]
[353081142,1739544699875,-635.98,0.00014438,2]
[353081143,1739544699885,-978.44,0.00014438,2]
[353081144,1739544699894,-1450.61,0.00014438,2]
[353081145,1739544699904,-500.0,0.00014438,2]
[353081146,1739544699914,-500.0,0.00014438,2]
[353081147,1739544699923,-1548.4,0.00014438,2]
[353081148,1739544699933,-1486.59,0.00014438,2]
[353081149,1739544699943,-802.99,0.00014438,2]
[353081150,1739544699953,-1107.32,0.00014438,2]
[353081151,1739544699963,-936.07,0.00014438,2]
[353081152,1739544699972,-2614.45,0.00014438,2]
[353081153,1739544699982,-710.72,0.00014438,2]
[353081154,1739544699991,-1150.16,0.00014438,2]
[353081155,1739544700002,-592.98,0.00014438,2]
[353081156,1739544700012,-687.93,0.00014438,2]
[353081157,1739544700022,-1155.9,0.00014438,2]
[353081158,1739544700031,-1976.19,0.00014438,2]
[353081159,1739544700041,-500.0,0.00014438,2]
[353081160,1739544700052,-1070.16,0.00014438,2]
[353081161,1739544700061,-500.0,0.00014438,2]
[353081162,1739544700071,-742.09,0.00014438,2]
[353081163,1739544700081,-1623.3,0.00014438,2]
[353081164,1739544700091,-997.85,0.00014438,2]
[353081165,1739544700103,-727.42,0.00014438,2]
[353081166,1739544700114,-1903.26,0.00014438,2]
[353081167,1739544700125,-956.17,0.00014438,2]
[353081168,1739544700136,-1098.4,0.00014438,2]
[353081169,1739544700147,-513.32,0.00014438,2]
[353081170,1739544700157,-1764.08,0.00014438,2]
[353081171,1739544700167,-2104.25,0.00014438,2]
[353081172,1739544700178,-2002.33,0.00014438,2]
[353081173,1739544700189,-500.0,0.00014438,2]
[353081174,1739544700199,-841.37,0.00014438,2]
[353081175,1739544700210,-964.11,0.00014438,2]
[353081176,1739544700220,-1048.68,0.00014438,2]
[353081177,1739544700230,-768.42,0.00014438,2]
[353081178,1739544700239,-553.63,0.00014438,2]
[353081179,1739544700249,-717.39,0.00014438,2]
[353081180,1739544700259,-500.0,0.00014438,2]
[353081181,1739544700268,-2216.64,0.00014438,2]
[353081182,1739544700278,-1486.6,0.00014438,2]
[353081183,1739544700289,-1430.4,0.00014438,2]
[353081184,1739544700300,-500.0,0.00014438,2]
[353081185,1739544700310,-586.49,0.00014438,2]
[353081186,1739544700320,-1536.77,0.00014438,2]
[353081187,1739544700329,-1368.84,0.00014438,2]
[353081188,1739544700340,-1844.89,0.00014438,2]
[353081189,1739544700350,-1068.82,0.00014438,2]
[353081190,1739544700360,-500.0,0.00014438,2]
[353081191,1739544700369,-521.69,0.00014438,2]
[353081192,1739544700379,-500.0,0.00014438,2]
[353081193,1739544700388,-626.82,0.00014438,2]
[353081194,1739544700399,-720.9,0.00014438,2]
[353081195,1739544700408,-1187.63,0.00014438,2]
[353081196,1739544700418,-1264.36,0.00014438,2]
[353081197,1739544700428,-500.0,0.00014438,2]
[353081198,1739544700438,-632.35,0.00014438,2]
[353081199,1739544700448,-576.08,0.00014438,2]
[353081200,1739544700459,-2178.99,0.00014438,2]
[353081201,1739544700469,-1434.56,0.00014438,2]
[353081202,1739544700479,-755.49,0.00014438,2]
[353081203,1739544700490,-1654.89,0.00014438,2]
[353081204,1739544700500,-500.0,0.00014438,2]
[353081205,1739544700511,-3925.97,0.00014438,2]
[353081206,1739544700521,-586.36,0.00014438,2]
[353081207,1739544700531,-520.35,0.00014438,2]
[353081208,1739544700541,-634.11,0.00014438,2]
[353081209,1739544700552,-561.73,0.00014438,2]
[353081210,1739544700563,-747.95,0.00014438,2]
[353081211,1739544700573,-500.5,0.00014438,2]
[353081212,1739544700584,-500.0,0.00014438,2]
[353081213,1739544700594,-807.32,0.00014438,2]
[353081214,1739544700604,-500.0,0.00014438,2]
[353081215,1739544700614,-831.08,0.00014438,2]
[353081216,1739544700624,-1263.6,0.00014438,2]
[353081217,1739544700634,-535.69,0.00014438,2]
[353081218,1739544700644,-1239.88,0.00014438,2]
[353081219,1739544700654,-1758.42,0.00014438,2]
[353081220,1739544700664,-2699.91,0.00014438,2]
[353081221,1739544700673,-874.13,0.00014438,2]
[353081222,1739544700683,-896.36,0.00014438,2]
[353081223,1739544700693,-1946.46,0.00014438,2]
[353081224,1739544700705,-1993.9,0.00014438,2]
[353081225,1739544700715,-1045.73,0.00014438,2]
[353081226,1739544700725,-2126.26,0.00014438,2]
[353081227,1739544700735,-500.0,0.00014438,2]
[353081228,1739544700746,-1742.35,0.00014438,2]
[353081229,1739544700756,-4110.54,0.00014438,2]
[353081230,1739544700767,-2011.27,0.00014438,2]
[353081231,1739544700777,-2391.78,0.00014438,2]
[353081232,1739544700786,-500.0,0.00014438,2]
[353081233,1739544700798,-609.61,0.00014438,2]
[353081234,1739544700808,-500.0,0.00014438,2]
[353081235,1739544700818,-1831.52,0.00014438,2]
[353081236,1739544700828,-500.0,0.00014438,2]
[353081237,1739544700838,-2646.27,0.00014438,2]
[353081238,1739544700848,-500.0,0.00014438,2]
[353081239,1739544700858,-1174.04,0.00014438,2]
[353081240,1739544700868,-3164.91,0.00014438,2]
[353081241,1739544700878,-884.25,0.00014438,2]
[353081242,1739544700889,-1085.57,0.00014438,2]
[353081243,1739544700899,-500.0,0.00014438,2]
[353081244,1739544700909,-1315.32,0.00014438,2]
[353081245,1739544700919,-1305.11,0.00014438,2]
[353081246,1739544700929,-1534.02,0.00014438,2]
[353081247,1739544700939,-804.3,0.00014438,2]
[353081248,1739544700950,-3065.35,0.00014438,2]
[353081249,1739544700960,-500.0,0.00014438,2]
[353081250,1739544700970,-942.83,0.00014438,2]
[353081251,1739544700981,-2292.76,0.00014438,2]
[353081252,1739544700991,-598.52,0.00014438,2]
[353081253,1739544701002,-1739.66,0.00014438,2]
[353081254,1739544701012,-3051.27,0.00014438,2]
[353081255,1739544701023,-1938.22,0.00014438,2]
[353081256,1739544701185,-1919.75,0.00014438,2]
[353081257,1739544701199,-2644.4,0.00014438,2]
[353081258,1739544701209,-500.0,0.00014438,2]
[353081259,1739544701218,-527.01,0.00014438,2]
[353081260,1739544701228,-500.0,0.00014438,2]
[353081261,1739544701239,-3022.44,0.00014438,2]
[353081262,1739544701248,-500.0,0.00014438,2]
[353081263,1739544701258,-2150.61,0.00014438,2]
[353081264,1739544701268,-1103.11,0.00014438,2]
[353081265,1739544701278,-2670.78,0.00014438,2]
[353081266,1739544701288,-852.03,0.00014438,2]
[353081267,1739544701298,-500.0,0.00014438,2]
[353081268,1739544701308,-534.43,0.00014438,2]
[353081269,1739544701317,-3644.59,0.00014438,2]
[353081270,1739544701326,-1448.15,0.00014438,2]
[353081271,1739544701336,-3104.88,0.00014438,2]
[353081272,1739544701346,-1834.3,0.00014438,2]
[353081273,1739544701356,-500.0,0.00014438,2]
[353081274,1739544701366,-826.96,0.00014438,2]
[353081275,1739544701375,-1560.34,0.00014438,2]
[353081276,1739544701385,-500.0,0.00014438,2]
[353081277,1739544701395,-1308.88,0.00014438,2]
[353081278,1739544701404,-3528.69,0.00014438,2]
[353081279,1739544701414,-2015.42,0.00014438,2]
[353081280,1739544701423,-1061.33,0.00014438,2]
[353081281,1739544701432,-5617.67,0.00014438,2]
[353081282,1739544701441,-756.69,0.00014438,2]
[353081283,1739544701451,-1702.01,0.00014438,2]
[353081284,1739544701460,-500.0,0.00014438,2]
[353081285,1739544701469,-500.0,0.00014438,2]
[353081286,1739544701479,-701.91,0.00014438,2]
[353081287,1739544701489,-3158.22,0.00014438,2]
[353081288,1739544701499,-3903.71,0.00014438,2]
[353081289,1739544701508,-1832.52,0.00014438,2]
[353081290,1739544701518,-848.31,0.00014438,2]
[353081291,1739544701528,-3315.95,0.00014438,2]
[353081292,1739544701538,-2725.27,0.00014438,2]
[353081293,1739544701548,-2031.81,0.00014438,2]
[353081294,1739544701557,-4599.98,0.00014438,2]
[353081295,1739544701566,-500.0,0.00014438,2]
[353081296,1739544701576,-703.01,0.00014438,2]
[353081297,1739544701585,-1874.26,0.00014438,2]